bitfinex-derivatives/quotes_BTCF0:USTF0_20241221
["timestamp","ask_amount","ask_price","bid_price","bid_amount"]
[1734762885781,0.411671,98412.0,98411.0,0.18179164]
[1734762887186,0.050836,98404.0,98401.0,0.050837]
[1734762887392,0.411636,98404.0,98401.0,0.050837]
[1734762887686,4e-05,98402.0,98401.0,0.050837]
[1734762888389,4e-05,98402.0,98401.0,0.055837]
[1734762889291,0.00104,98402.0,98401.0,0.055837]
[1734762890783,0.00104,98402.0,98401.0,0.050837]
[1734762890982,0.00204,98402.0,98401.0,0.006]
[1734762891596,0.00204,98402.0,98398.0,7.692e-05]
[1734762891784,0.00204,98402.0,98383.0,0.0714]
[1734762891785,0.050846,98384.0,98383.0,0.0714]
[1734762892485,0.050886,98384.0,98383.0,0.0714]
[1734762892690,0.05096292,98384.0,98383.0,0.0714]
[1734762893984,0.05396292,98384.0,98383.0,0.0714]
[1734762894193,0.05896292,98384.0,98383.0,0.0714]
[1734762894678,0.15195712,98410.0,98403.0,0.050836]
[1734762894881,0.00052001,98461.0,98403.0,0.050836]
[1734762894882,0.0673,98440.0,98415.0,0.05083]
[1734762895086,0.0673,98440.0,98433.0,0.05082]
[1734762895284,0.24225192,98439.0,98426.0,0.3608]
[1734762895693,0.050817,98439.0,98438.0,8e-05]
[1734762896389,0.0673,98440.0,98438.0,8e-05]
[1734762896778,0.0673,98440.0,98439.0,8e-05]
[1734762898195,0.0683,98440.0,98439.0,0.00608]
[1734762898587,0.0693,98440.0,98439.0,0.00608]
[1734762898784,0.0693,98440.0,98439.0,0.00708]
[1734762899090,0.0683,98440.0,98439.0,0.00708]
[1734762899297,0.0693,98440.0,98439.0,0.01208]
[1734762899795,0.0693,98440.0,98426.0,0.3608]
[1734762900099,0.050824,98427.0,98426.0,0.3608]
[1734762901086,0.006,98427.0,98426.0,0.001]
[1734762901397,0.056824,98427.0,98426.0,0.001]
[1734762901897,0.056824,98427.0,98426.0,0.003]
[1734762902403,0.065824,98427.0,98426.0,0.001]
[1734762903197,0.015,98427.0,98426.0,0.001]
[1734762903800,0.050835,98405.0,98404.0,0.050835]
[1734762904000,0.050835,98405.0,98401.0,0.3608]
[1734762904001,0.050832,98411.0,98406.0,0.050834]
[1734762904192,0.0697,98410.0,98406.0,0.050834]
[1734762904600,0.050834,98408.0,98406.0,0.050834]
[1734762905292,0.050836,98402.0,98389.0,0.36144]
[1734762905489,0.050842,98392.0,98389.0,0.3608]
[1734762905693,0.050839,98397.0,98395.0,0.05084]
[1734762907093,0.002,98397.0,98389.0,0.3608]
[1734762907298,0.050842,98391.0,98389.0,0.3608]
[1734762907608,4e-05,98390.0,98389.0,0.3608]
[1734762908411,4e-05,98390.0,98389.0,0.411643]
[1734762908803,4e-05,98390.0,98389.0,0.3608]
[1734762909302,0.00104,98390.0,98389.0,0.3608]
[1734762910496,0.00204,98390.0,98389.0,0.3608]
[1734762914695,0.00104,98390.0,98389.0,0.3608]
[1734762914997,0.00204,98390.0,98389.0,0.3608]
[1734762915198,0.052883,98390.0,98384.0,0.24116176]
[1734762915512,4e-05,98385.0,98382.0,0.60196176]
[1734762915808,0.050886,98383.0,98382.0,0.60196176]
[1734762916910,0.057886,98383.0,98382.0,0.60196176]
[1734762917207,0.057886,98383.0,98382.0,0.3608]
[1734762918308,0.057886,98383.0,98379.0,0.01052433]
[1734762918309,0.050848,98380.0,98379.0,0.01052433]
[1734762918509,0.050848,98380.0,98376.0,0.05085]
[1734762918807,4e-05,98377.0,98376.0,0.05085]
[1734762919203,4e-05,98377.0,98374.0,0.3608]
[1734762919714,0.05085,98375.0,98374.0,0.37133588]
[1734762920013,0.05089,98375.0,98374.0,0.37133588]
[1734762921113,0.05689,98375.0,98374.0,0.37133588]
[1734762922007,0.06089,98375.0,98374.0,0.37133588]
[1734762922401,0.06289,98375.0,98374.0,0.37133588]
[1734762930212,0.01204,98375.0,98374.0,0.37133588]
[1734762934318,0.0688,98389.0,98388.0,0.050843]
[1734762934522,0.0688,98389.0,98388.0,0.3608]
[1734762934722,0.050849,98376.0,98374.0,0.37193588]
[1734762934924,0.0729,98375.0,98374.0,0.37133588]
[1734762935622,0.07294,98375.0,98374.0,0.37133588]
[1734762936127,0.07294,98375.0,98374.0,0.42218588]
[1734762936327,0.07894,98375.0,98374.0,0.42218588]
[1734762936628,0.08494,98375.0,98374.0,0.42218588]
[1734762939521,0.01204,98375.0,98374.0,0.42218588]
[1734762940929,0.01204,98375.0,98374.0,0.46113093]
[1734762942930,0.01204,98375.0,98374.0,0.71294694]
[1734762943133,0.01204,98375.0,98374.0,0.67400189]
[1734762943331,0.01204,98375.0,98374.0,0.71295146]
[1734762943937,0.01204,98375.0,98374.0,0.67400189]
[1734762947032,0.01204,98375.0,98374.0,0.42218588]
[1734762948020,0.01204,98375.0,98374.0,0.72639325]
[1734762948534,0.01204,98375.0,98374.0,0.76533866]
[1734762948935,0.01204,98375.0,98374.0,0.72639325]
[1734762949141,0.01204,98375.0,98374.0,0.6737128]
[1734762949440,0.01204,98375.0,98374.0,0.71265784]
[1734762949631,0.01204,98375.0,98374.0,0.6737128]
[1734762950335,0.01204,98375.0,98374.0,0.7126645]
[1734762950536,0.01204,98375.0,98374.0,0.6737128]
[1734762951732,0.01204,98375.0,98374.0,0.42218588]
[1734762966649,0.01204,98375.0,98374.0,0.46118128]
[1734762968250,0.01204,98375.0,98374.0,0.70791317]
[1734762969553,0.01204,98375.0,98374.0,0.66891777]
[1734762969851,0.01204,98375.0,98374.0,0.72654055]
[1734762970248,0.01204,98375.0,98374.0,0.76553682]
[1734762970442,0.00357688,98375.0,98374.0,0.76553682]
[1734762971351,0.06639921,98383.0,98381.0,0.050846]
[1734762971652,0.06639921,98383.0,98382.0,0.47229627]
[1734762973247,0.00152493,98402.0,98401.0,0.050836]
[1734762973445,0.00152493,98402.0,98401.0,0.411636]
[1734762973645,0.00152493,98402.0,98401.0,0.411716]
[1734762974553,0.00252493,98402.0,98401.0,0.420716]
[1734762974752,0.00352493,98402.0,98401.0,0.428716]
[1734762976143,0.00352493,98402.0,98401.0,0.60283306]
[1734762976144,0.00252493,98402.0,98401.0,0.60283306]
[1734762976352,0.00352493,98402.0,98401.0,0.61083306]
[1734762977049,0.00352493,98402.0,98401.0,0.61183306]
[1734762977651,0.00352493,98402.0,98401.0,0.429716]
[1734762978348,0.002,98402.0,98401.0,0.203516]
[1734762978546,0.002,98402.0,98381.0,0.24864265]
[1734762978547,1.0236,98402.0,98381.0,0.24864265]
[1734762978745,0.050847,98380.0,98352.0,0.42267309]
[1734762978952,0.3608,98356.0,98352.0,0.42267309]
[1734762979147,0.3608,98356.0,98352.0,0.00064]
[1734762979352,0.3608,98356.0,98341.0,0.3608]
[1734762979353,0.3608,98356.0,98353.0,0.03890693]
[1734762979542,0.3608,98356.0,98347.0,0.60350442]
[1734762979747,0.3608,98356.0,98348.0,0.03891417]
[1734762979942,0.3608,98356.0,98347.0,0.60354442]
[1734762980151,0.3608,98356.0,98347.0,0.61360942]
[1734762980351,4e-05,98348.0,98347.0,0.61360942]
[1734762980553,4e-05,98348.0,98347.0,0.010705]
[1734762980739,4e-05,98348.0,98347.0,0.050864]
[1734762981149,4e-05,98348.0,98347.0,0.052864]
[1734762981645,4e-05,98348.0,98347.0,0.050864]
[1734762981952,0.00104,98348.0,98347.0,0.052864]
[1734762982457,0.00104,98348.0,98347.0,0.06317793]
[1734762991158,1e-08,98348.0,98347.0,0.06317793]
[1734762999061,0.3608,98367.0,98365.0,0.050854]
[1734762999456,0.3608,98367.0,98366.0,8e-05]
[1734763000961,0.3608,98367.0,98366.0,0.00108]
[1734763001867,0.3628,98367.0,98366.0,0.00108]
[1734763006069,0.3628,98367.0,98366.0,0.01129074]
[1734763010165,0.41376902,98367.0,98366.0,0.01129074]
[1734763013968,0.05296902,98367.0,98366.0,0.01129074]
[1734763014177,0.05296902,98367.0,98366.0,0.22419074]
[1734763014776,0.05296902,98367.0,98366.0,0.26315545]
[1734763014970,0.05296902,98367.0,98366.0,0.22419074]
[1734763015365,0.05296902,98367.0,98366.0,0.26316963]
[1734763015667,0.002,98367.0,98366.0,0.22419074]
[1734763016969,0.002,98367.0,98366.0,0.26315106]
[1734763017663,0.002,98367.0,98366.0,0.22419074]
[1734763020481,0.002,98367.0,98366.0,0.01129074]
[1734763027288,0.05301031,98367.0,98366.0,0.01129074]
[1734763028378,0.30242663,98402.0,98366.0,0.67209074]
[1734763028581,0.30242663,98402.0,98401.0,0.050836]
[1734763028984,0.30242663,98402.0,98401.0,0.050916]
[1734763030101,0.15218135,98406.0,98401.0,8e-05]
[1734763030783,0.15218135,98406.0,98405.0,0.050834]
[1734763030982,0.15218135,98406.0,98405.0,0.050914]
[1734763031486,0.15218135,98406.0,98405.0,8e-05]
[1734763031687,0.001,98406.0,98405.0,8e-05]
[1734763032279,0.001,98406.0,98405.0,0.00508]
[1734763033088,0.051834,98406.0,98405.0,0.00508]
[1734763035290,0.052834,98406.0,98405.0,0.00808]
[1734763035696,0.002,98406.0,98405.0,0.00808]
[1734763036586,0.3628,98406.0,98405.0,0.00808]
[1734763042598,0.3628,98406.0,98405.0,0.08448]
[1734763044502,0.45392075,98406.0,98405.0,0.08448]
[1734763044889,0.09312075,98406.0,98405.0,0.08448]
[1734763045200,0.12149434,98411.0,98410.0,0.050832]
[1734763045589,0.12149434,98411.0,98410.0,0.050912]
[1734763045890,0.12149434,98422.0,98420.0,0.050827]
[1734763046289,0.12149434,98422.0,98421.0,8e-05]
[1734763047001,0.12149434,98422.0,98421.0,0.01056305]
[1734763047398,0.12149434,98426.0,98421.0,0.01056305]
[1734763047591,0.12149434,98426.0,98422.0,0.06130905]
[1734763047794,0.12149434,98426.0,98423.0,0.01055909]
[1734763048001,0.12149434,98426.0,98423.0,0.01055897]
[1734763048302,0.12149434,98426.0,98423.0,0.01055355]
[1734763048489,0.00252471,98424.0,98423.0,0.01055355]
[1734763048693,0.36332471,98424.0,98423.0,8e-05]
[1734763048892,0.36432471,98424.0,98423.0,0.00608]
[1734763049898,0.48581905,98424.0,98423.0,0.00608]
[1734763050398,0.48481905,98424.0,98423.0,0.00608]
[1734763050595,0.48581905,98424.0,98423.0,0.01008]
[1734763051202,0.48429434,98424.0,98423.0,0.01008]
[1734763051903,0.53511934,98424.0,98423.0,0.01008]
[1734763052288,0.050829,98417.0,98400.0,0.1739575]
[1734763052495,0.3608,98406.0,98405.0,0.050835]
[1734763052694,4e-05,98401.0,98400.0,0.125537]
[1734763053498,4e-05,98401.0,98400.0,0.127537]
[1734763053998,4e-05,98401.0,98400.0,0.13599938]
[1734763054199,0.00104,98401.0,98400.0,0.5121423]
[1734763054796,0.00104,98401.0,98400.0,0.1513423]
[1734763054996,0.00104,98401.0,98400.0,0.5121423]
[1734763057397,0.12137307,98418.0,98410.0,0.0036]
[1734763057599,0.00152447,98435.0,98434.0,0.050822]
[1734763057808,0.3608,98453.0,98434.0,0.42208438]
[1734763058007,0.3608,98453.0,98446.0,0.050815]
[1734763058207,0.3608,98453.0,98446.0,0.050895]
[1734763059005,0.18223153,98466.0,98463.0,0.050806]
[1734763060005,0.18223153,98466.0,98465.0,8e-05]
[1734763060193,0.18323153,98466.0,98465.0,8e-05]
[1734763060710,0.001,98466.0,98465.0,8e-05]
[1734763061107,0.001,98466.0,98465.0,0.00208]
[1734763061313,0.001,98466.0,98465.0,0.01108]
[1734763072630,0.3618,98466.0,98465.0,0.01108]
[1734763078933,0.6618,98466.0,98446.0,8e-05]
[1734763079232,0.772455,98447.0,98446.0,8e-05]
[1734763080235,0.772455,98447.0,98446.0,0.00108]
[1734763080438,0.773455,98447.0,98446.0,0.02055837]
[1734763080629,0.773455,98447.0,98446.0,0.01008]
[1734763080832,0.774455,98447.0,98446.0,0.01008]
[1734763083431,0.050824,98429.0,98409.0,0.24223751]
[1734763083739,0.411674,98410.0,98409.0,0.23623751]
[1734763084838,0.411674,98410.0,98400.0,0.00012344]
[1734763084839,0.050839,98401.0,98400.0,0.00012344]
[1734763085147,0.411679,98401.0,98400.0,0.00012344]
[1734763086244,0.418679,98401.0,98400.0,0.00012344]
[1734763086645,0.427679,98401.0,98400.0,0.00012344]
[1734763087144,0.01604,98401.0,98400.0,0.05096244]
[1734763087843,0.3608,98409.0,98400.0,0.05096244]
[1734763087844,0.3608,98409.0,98408.0,0.050835]
[1734763088049,0.18223153,98418.0,98417.0,0.05083]
[1734763088244,0.36132001,98419.0,98417.0,0.05083]
[1734763088547,0.3608,98419.0,98417.0,0.05083]
[1734763089446,0.001,98418.0,98417.0,0.05083]
[1734763089945,0.3608,98419.0,98417.0,0.05083]
[1734763089946,0.3628,98419.0,98417.0,0.05083]
[1734763090451,0.001,98419.0,98418.0,0.36088]
[1734763090941,0.001,98419.0,98418.0,0.43508]
[1734763091945,0.050822,98433.0,98418.0,0.43508]
[1734763092147,0.050822,98433.0,98421.0,0.0992575]
[1734763092451,0.050822,98433.0,98430.0,8e-05]
[1734763093551,0.3618,98431.0,98430.0,8e-05]
[1734763094146,0.3618,98431.0,98430.0,0.059904]
[1734763094742,0.3628,98431.0,98430.0,0.059904]
[1734763095344,0.3618,98431.0,98430.0,0.059904]
[1734763095544,0.3628,98431.0,98430.0,0.07518464]
[1734763096452,0.3628,98431.0,98430.0,0.02436064]
[1734763100354,0.00152484,98449.0,98430.0,0.02436064]
[1734763100658,0.00152484,98449.0,98448.0,0.050894]
[1734763102254,0.00152484,98449.0,98448.0,0.053894]
[1734763103242,0.00252484,98449.0,98448.0,0.055894]
[1734763103745,0.00252484,98449.0,98448.0,0.06637194]
[1734763104755,0.00352484,98449.0,98448.0,0.06937194]
[1734763105451,0.002,98449.0,98448.0,0.06937194]
[1734763105657,0.001,98449.0,98448.0,0.06737194]
[1734763105857,0.002,98449.0,98448.0,0.07637194]
[1734763110857,0.002,98449.0,98448.0,0.43717194]
[1734763111262,0.3608,98467.0,98448.0,0.38635794]
[1734763111463,0.3608,98467.0,98466.0,0.050805]
[1734763111665,0.3608,98467.0,98466.0,0.050885]
[1734763112355,0.3618,98467.0,98466.0,0.050885]
[1734763112858,0.3608,98467.0,98466.0,0.050885]
[1734763113064,0.3618,98467.0,98466.0,0.059885]
[1734763113956,0.3618,98467.0,98466.0,0.061885]
[1734763117964,0.3618,98467.0,98466.0,0.07204504]
[1734763130368,0.001,98467.0,98466.0,0.43284504]
[1734763130672,0.15254002,98467.0,98466.0,0.43284504]
[1734763131070,0.12556877,98467.0,98466.0,0.43284504]
[1734763131667,0.12556877,98467.0,98466.0,0.44334455]
[1734763131868,0.18223153,98477.0,98466.0,0.44334455]
[1734763132072,0.23161387,98485.0,98476.0,0.411599]
[1734763132263,0.23161387,98485.0,98477.0,0.07149951]
[1734763132465,0.23161387,98485.0,98484.0,0.050875]
[1734763132672,0.23161387,98485.0,98484.0,0.06137451]
[1734763133068,0.23161387,98485.0,98484.0,0.42217451]
[1734763133375,0.18223153,98498.0,98497.0,0.050789]
[1734763133673,0.18223153,98498.0,98497.0,0.06136851]
[1734763134772,0.48900001,98512.0,98497.0,0.01057951]
[1734763134773,0.17231719,98499.0,98497.0,0.01057951]
[1734763134972,0.42550001,98512.0,98498.0,0.01049951]
[1734763135170,0.42550001,98512.0,98502.0,0.411586]
[1734763135171,0.00060001,98512.0,98502.0,0.411586]
[1734763135472,0.3608,98521.0,98511.0,8e-05]
[1734763135664,0.3608,98521.0,98517.0,0.050778]
[1734763135971,0.3608,98521.0,98520.0,8e-05]
[1734763136475,0.37112791,98521.0,98520.0,8e-05]
[1734763138760,0.01032791,98521.0,98520.0,0.01059426]
[1734763138966,0.0641,98525.0,98520.0,0.01059426]
[1734763139169,0.0641,98525.0,98520.0,0.050857]
[1734763139170,0.04936465,98521.0,98520.0,0.050857]
[1734763139373,0.04936465,98521.0,98520.0,0.050777]
[1734763139562,0.04936465,98521.0,98520.0,0.06128782]
[1734763140161,0.04936465,98521.0,98520.0,0.42208782]
[1734763140367,0.001,98525.0,98520.0,0.37131082]
[1734763140581,0.001,98525.0,98524.0,0.050775]
[1734763140775,0.001,98525.0,98524.0,0.06128582]
[1734763140981,0.001,98525.0,98524.0,0.06126484]
[1734763141977,0.001,98525.0,98524.0,0.0642433]
[1734763142180,0.3608,98533.0,98524.0,0.0642433]
[1734763142371,0.3608,98533.0,98525.0,0.0104683]
[1734763143069,0.3608,98533.0,98525.0,0.0105483]
[1734763143871,0.3608,98533.0,98532.0,0.050771]
[1734763144069,0.3608,98533.0,98532.0,0.050851]
[1734763145577,0.3608,98533.0,98532.0,0.00308]
[1734763146075,0.41157,98533.0,98532.0,0.00308]
[1734763146882,0.050775,98524.0,98523.0,0.01049286]
[1734763147178,0.411615,98524.0,98523.0,0.01049286]
[1734763148080,0.411615,98524.0,98523.0,0.01249286]
[1734763148381,0.411615,98524.0,98523.0,0.008]
[1734763149782,0.411615,98524.0,98487.0,0.34112]
[1734763149979,0.3608,98506.0,98490.0,0.4600575]
[1734763150283,0.36084,98506.0,98505.0,0.01190382]
[1734763150484,0.36084,98506.0,98505.0,0.00152264]
[1734763151077,0.36084,98506.0,98505.0,0.05430764]
[1734763151384,0.36084,98506.0,98505.0,0.06330764]
[1734763151881,0.36184,98506.0,98505.0,0.07676991]
[1734763153285,0.36184,98506.0,98505.0,0.0868328]
[1734763154874,0.36184,98506.0,98505.0,0.0360478]
[1734763155076,0.412624,98506.0,98505.0,0.0360478]
[1734763156278,0.412624,98506.0,98505.0,0.02558553]
[1734763156480,0.773424,98506.0,98505.0,0.01552264]
[1734763158288,0.78388251,98506.0,98505.0,0.01552264]
[1734763158483,0.773424,98506.0,98505.0,0.01552264]
[1734763158678,0.773424,98506.0,98419.0,0.09664209]
[1734763158679,0.92264,98506.0,98468.0,0.17575909]
[1734763158886,0.7216,98469.0,98464.0,0.21796107]
[1734763159083,0.050805,98465.0,98464.0,0.21796107]
[1734763159285,0.050845,98465.0,98464.0,0.21796107]
[1734763159675,0.050845,98465.0,98446.0,0.21796107]
[1734763159986,0.411654,98447.0,98446.0,0.21796107]
[1734763160179,0.4117288,98447.0,98446.0,0.21796107]
[1734763160985,0.4117288,98447.0,98446.0,0.22296107]
[1734763161491,0.4117288,98447.0,98446.0,0.006]
[1734763162479,0.4207288,98447.0,98446.0,0.001]
[1734763163081,0.050821,98435.0,98426.0,0.050825]
[1734763163282,0.3679148,98447.0,98426.0,0.050825]
[1734763163283,0.3608,98432.0,98426.0,0.06116172]
[1734763163488,4e-05,98427.0,98426.0,0.06116172]
[1734763164785,0.00804,98427.0,98426.0,0.06116172]
[1734763166392,0.00804,98427.0,98426.0,0.06216172]
[1734763166797,0.00804,98427.0,98426.0,0.06116172]
[1734763166999,0.01704,98427.0,98426.0,0.06216172]
[1734763170301,0.01704,98427.0,98426.0,0.01133672]
[1734763183705,0.42874056,98427.0,98426.0,0.01133672]
[1734763187198,0.42874056,98427.0,98426.0,0.001]
[1734763187401,0.050836,98405.0,98400.0,0.150839]
[1734763187706,0.41175156,98405.0,98400.0,0.150839]
[1734763188506,0.41175156,98405.0,98400.0,0.16091072]
[1734763189008,0.41475156,98405.0,98400.0,0.16091072]
[1734763189214,0.41475156,98405.0,98401.0,0.050838]
[1734763189712,0.41475156,98405.0,98404.0,0.00252424]
[1734763189900,0.42075156,98405.0,98404.0,0.00252424]
[1734763194209,0.00911556,98405.0,98404.0,0.00252424]
[1734763194512,0.18214423,98422.0,98421.0,0.050828]
[1734763194915,0.18214423,98422.0,98416.0,0.3608]
[1734763194916,0.3608,98426.0,98425.0,0.050826]
[1734763195617,0.050816,98444.0,98430.0,0.050823]
[1734763195817,0.1968,98445.0,98425.0,0.3608]
[1734763195818,0.050817,98442.0,98434.0,0.050821]
[1734763196813,0.2633106,98459.0,98434.0,0.050821]
[1734763196814,0.2125016,98459.0,98434.0,0.6608]
[1734763197023,0.00869882,98459.0,98457.0,0.050809]
[1734763197328,0.27377635,98473.0,98456.0,0.3608]
[1734763197329,0.16301326,98484.0,98458.0,0.40422]
[1734763197501,0.3608,98482.0,98477.0,0.050799]
[1734763198515,0.16301326,98484.0,98483.0,0.050796]
[1734763198913,0.3608,98494.0,98480.0,0.3608]
[1734763199118,0.3608,98494.0,98493.0,0.050791]
[1734763199303,0.3608,98494.0,98493.0,0.050871]
[1734763200409,0.3618,98494.0,98493.0,0.057871]
[1734763200610,0.3628,98494.0,98493.0,0.066871]
[1734763202619,0.3628,98494.0,98493.0,0.01608]
[1734763203120,0.41359,98494.0,98493.0,0.01608]
[1734763205213,0.41259,98494.0,98493.0,0.00708]
[1734763205412,0.41359,98494.0,98493.0,0.01608]
[1734763208017,0.3628,98494.0,98493.0,0.066871]
[1734763210209,0.3608,98536.0,98505.0,0.050785]
[1734763210413,0.06912284,98549.0,98524.0,0.050775]
[1734763210713,0.050767,98540.0,98524.0,0.050855]
[1734763211126,0.06912284,98549.0,98524.0,0.050855]
[1734763211313,0.050768,98538.0,98524.0,0.050855]
[1734763211719,0.050769,98536.0,98526.0,0.050774]
[1734763211919,0.050772,98529.0,98524.0,8e-05]
[1734763212113,0.050772,98529.0,98523.0,0.050775]
[1734763212328,0.050772,98529.0,98526.0,0.050774]
[1734763212620,0.3608,98532.0,98524.0,0.01]
[1734763212621,0.050772,98530.0,98524.0,0.01]
[1734763212813,0.050772,98530.0,98526.0,0.002]
[1734763213510,0.050772,98530.0,98526.0,0.005]
[1734763214122,0.050772,98530.0,98528.0,0.050773]
[1734763214716,0.3608,98532.0,98526.0,0.005]
[1734763215018,0.050773,98527.0,98526.0,0.056774]
[1734763215319,0.3608,98532.0,98528.0,0.050773]
[1734763215516,0.3608,98532.0,98528.0,0.055773]
[1734763215823,0.3608,98542.0,98541.0,0.050766]
[1734763216120,0.3608,98542.0,98541.0,0.050846]
[1734763217119,0.06912284,98549.0,98545.0,0.050764]
[1734763217320,0.06912284,98549.0,98541.0,8e-05]
[1734763217321,0.06912284,98549.0,98546.0,0.050763]
[1734763217621,0.06912284,98549.0,98548.0,8e-05]
[1734763218526,0.00152284,98549.0,98548.0,8e-05]
[1734763218723,0.00152284,98549.0,98548.0,0.00308]
[1734763219831,0.00152284,98549.0,98548.0,0.00908]
[1734763220526,0.00152284,98549.0,98548.0,0.01308]
[1734763221029,0.050754,98561.0,98548.0,0.01308]
[1734763221229,0.050754,98561.0,98551.0,0.3608]
[1734763221432,0.050754,98561.0,98560.0,4e-05]
[1734763222431,0.0688,98563.0,98561.0,0.050753]
[1734763222821,0.0688,98563.0,98551.0,0.3668]
[1734763222822,0.050741,98588.0,98562.0,4e-05]
[1734763223029,0.0645,98578.0,98570.0,0.3608]
[1734763224037,0.0645,98578.0,98577.0,0.050746]
[1734763224431,0.0665,98578.0,98577.0,0.050746]
[1734763225030,0.0645,98578.0,98577.0,0.050746]
[1734763225229,0.0665,98578.0,98577.0,0.050746]
[1734763226326,0.0665,98578.0,98577.0,0.051746]
[1734763226838,0.0655,98578.0,98577.0,0.051746]
[1734763227230,0.001,98578.0,98577.0,0.051746]
[1734763227435,0.0639,98595.0,98584.0,0.050743]
[1734763227641,0.0639,98595.0,98580.0,0.0992575]
[1734763227844,0.0639,98595.0,98586.0,0.3608]
[1734763228049,0.0639,98595.0,98594.0,0.3608]
[1734763228440,0.0639,98595.0,98594.0,0.411539]
[1734763229248,0.0639,98595.0,98586.0,0.3608]
[1734763229444,0.050743,98588.0,98577.0,0.050748]
[1734763229952,0.050743,98588.0,98578.0,0.4600575]
[1734763230145,0.0669,98595.0,98578.0,0.4600575]
[1734763230346,0.114639,98595.0,98578.0,0.4600575]
[1734763230541,0.114639,98595.0,98594.0,4e-05]
[1734763231145,0.0639,98595.0,98594.0,0.05078]
[1734763231451,0.114639,98595.0,98594.0,4e-05]
[1734763231951,0.0639,98595.0,98594.0,0.00504]
[1734763232355,0.0639,98595.0,98594.0,0.00604]
[1734763232854,0.0639,98595.0,98594.0,0.00704]
[1734763233555,0.114639,98595.0,98594.0,0.00804]
[1734763234245,0.114639,98595.0,98594.0,0.01004]
[1734763235446,0.12506121,98595.0,98594.0,0.01004]
[1734763235847,0.07432221,98595.0,98581.0,0.050746]
[1734763236053,0.050744,98587.0,98581.0,0.050746]
[1734763236352,0.00207999,98582.0,98581.0,0.050746]
[1734763236748,0.00207999,98582.0,98578.0,0.3608]
[1734763236947,0.00207999,98582.0,98581.0,0.050746]
[1734763237156,0.050744,98586.0,98581.0,0.050746]
[1734763237457,0.050744,98586.0,98585.0,4e-05]
[1734763238557,0.051744,98586.0,98585.0,4e-05]
[1734763238950,0.050744,98586.0,98585.0,4e-05]
[1734763239252,0.051744,98586.0,98585.0,0.00904]
[1734763239849,0.051744,98586.0,98585.0,0.01304]
[1734763240144,0.412544,98586.0,98585.0,0.01304]
[1734763243954,0.3618,98586.0,98585.0,0.01304]
[1734763244161,0.001,98586.0,98585.0,0.01304]
[1734763245662,0.1,98600.0,98597.0,0.050739]
[1734763245856,0.150737,98600.0,98597.0,0.050739]
[1734763246157,0.1,98600.0,98585.0,0.14554]
[1734763246360,0.05074,98595.0,98592.0,0.050741]
[1734763246963,0.1,98600.0,98585.0,0.15179113]
[1734763246964,0.050738,98599.0,98585.0,0.15179113]
[1734763247150,0.1,98600.0,98597.0,0.050739]
[1734763247551,0.00252207,98598.0,98597.0,0.057739]
[1734763248154,0.00252207,98598.0,98597.0,0.007]
[1734763248551,0.05326007,98598.0,98597.0,0.009]
[1734763249270,0.05326007,98598.0,98597.0,0.012]
[1734763249465,0.12026007,98598.0,98597.0,0.012]
[1734763250063,0.12026007,98598.0,98597.0,0.011]
[1734763250459,0.27089133,98598.0,98597.0,0.011]
[1734763250668,0.26989133,98598.0,98597.0,0.01]
[1734763251360,0.26989133,98598.0,98597.0,0.008]
[1734763251557,0.26989133,98598.0,98597.0,0.011]
[1734763251765,0.16859675,98598.0,98597.0,0.011]
[1734763252060,0.10159675,98598.0,98597.0,0.011]
[1734763252659,0.05226007,98598.0,98597.0,0.011]
[1734763253856,0.3608,98599.0,98598.0,0.050738]
[1734763254366,0.3608,98599.0,98598.0,0.050778]
[1734763255263,0.48230047,98599.0,98598.0,0.060778]
[1734763256361,0.3608,98599.0,98598.0,0.060778]
[1734763259470,0.3608,98599.0,98598.0,0.01004]
[1734763260865,0.51261769,98599.0,98598.0,0.01004]
[1734763262469,0.4101321,98599.0,98598.0,0.01004]
[1734763265966,0.59056604,98599.0,98598.0,0.01004]
[1734763267181,0.4101321,98599.0,98598.0,0.01004]
[1734763269464,0.59237198,98599.0,98598.0,0.01004]
[1734763270776,0.4101321,98599.0,98598.0,0.01004]
[1734763278571,0.4101321,98599.0,98598.0,0.060778]
[1734763278775,0.21074158,98604.0,98598.0,0.37084]
[1734763278975,0.21074158,98604.0,98603.0,0.050736]
[1734763279278,0.21074158,98604.0,98603.0,0.050776]
[1734763279681,0.18241368,98608.0,98605.0,0.050735]
[1734763279868,0.18241368,98608.0,98606.0,0.050734]
[1734763280580,0.13241368,98608.0,98607.0,4e-05]
[1734763281171,0.050733,98609.0,98608.0,0.050733]
[1734763281473,0.050731,98613.0,98612.0,0.050731]
[1734763281677,0.050733,98610.0,98608.0,4e-05]
[1734763281871,0.050733,98608.0,98606.0,0.054734]
[1734763282972,0.050733,98608.0,98606.0,0.055734]
[1734763283373,0.050733,98608.0,98607.0,0.004]
[1734763284076,0.050733,98608.0,98606.0,0.423534]
[1734763284277,0.050733,98608.0,98606.0,0.062734]
[1734763284480,0.050733,98608.0,98606.0,0.053734]
[1734763284774,0.00207999,98607.0,98606.0,0.053734]
[1734763285475,0.00207999,98607.0,98606.0,0.050734]
[1734763286174,0.00207999,98607.0,98606.0,0.059734]
[1734763286379,0.00207999,98607.0,98606.0,0.062734]
[1734763286774,0.00207999,98607.0,98606.0,0.012]
[1734763288582,0.00207999,98607.0,98606.0,0.013]
[1734763289283,0.00207999,98607.0,98606.0,0.004]
[1734763289486,0.00207999,98607.0,98606.0,0.013]
[1734763292384,0.05281399,98607.0,98606.0,0.013]
[1734763294681,0.05281399,98607.0,98606.0,0.063734]
[1734763306291,0.20466303,98607.0,98606.0,0.063734]
[1734763307896,0.102137,98607.0,98606.0,0.063734]
[1734763309387,0.23496847,98607.0,98606.0,0.063734]
[1734763309786,0.23496847,98607.0,98606.0,0.013]
[1734763310701,0.28429148,98607.0,98606.0,0.013]
[1734763314397,0.102137,98607.0,98606.0,0.013]